Cogmind - Beta 10.2 *** ADVENTURER MODE // 2020.11.11 @ 21:30:06 // Halloween2020/ForbiddenLore Player: STB Result: Destroyed by as-24702 with Assembled Maul Performance ------------- Evolutions (0) 0 Regions Visited (4) 800 Robots Destroyed (24) 120 Value Destroyed (375) 375 Prototype IDs (0) 0 Alien Tech Used (0) 0 Bonus (17) 17 TOTAL SCORE: 1312 Bonus ------- Follower Combat Kills 35 Friendly Fire -18 Cogmind --------- Core Integrity 0/250 Matter 300/300 Energy 58/125 System Corruption 0% Temperature Cool (0) Movement Rolling (100) Ox2 Location -9/Mines Parts ------- > --- POWER (1) -------- Light Ion Engine > --- PROPULSION (2) --- Wheel Wheel > --- UTILITY (2) ------ Heat Sink High-capacity Storage Unit > --- WEAPON (2) ------- Light EM Pulse Cannon Makeshift Spear > --- INVENTORY (12) --- Compact Matter Pod (150) Visual Processing Unit Sensor Array Signal Interpreter Peak State ------------ > --- POWER ------------ Ion Engine > --- PROPULSION ------- Light Treads Light Treads > --- UTILITY ---------- High-capacity Storage Unit Light Armor Plating > --- WEAPON ----------- Assault Rifle Makeshift Spear > --- INVENTORY -------- Ion Engine Light Treads Heat Sink Compact Matter Pod Visual Processing Unit Sensor Array Signal Interpreter Small Laser [Rating: 11] Favorites ----------- Power Ion Engine Engine Ion Engine Propulsion Light Treads Treads Light Treads Wheel Wheel Utility High-capacity Storage Unit Device Heat Sink Storage High-capacity Storage Unit Processor Visual Processing Unit Protection Light Armor Plating Weapon Small Laser Energy Gun Small Laser Energy Cannon Light EM Pulse Cannon Ballistic Gun Assault Rifle Piercing Weapon Makeshift Spear Build | -11 -10 -10 -10 -9 ------- Run | Scr Mat Min Exi Min Slots Evolved . | . . . . . Power . | . . . . . Propulsion . | . . . . . Utility . | . . . . . Weapon . | . . . . . Parts Attached 25 | 6 10 1 . 8 Power 3 | 1 . . . 2 Engine 3 | 1 . . . 2 Core . | . . . . . Reactor . | . . . . . Propulsion 6 | 2 1 . . 3 Treads 4 | 2 1 . . 1 Leg . | . . . . . Wheel 2 | . . . . 2 Hover . | . . . . . Flight . | . . . . . Utility 7 | 1 5 . . 1 Device 1 | . . . . 1 Storage 3 | 1 2 . . . Processor 1 | . 1 . . . Hackware . | . . . . . Protection 2 | . 2 . . . Artifact . | . . . . . Weapon 9 | 2 4 1 . 2 Energy Gun 5 | 1 3 . . 1 Energy Cannon 1 | . . . . 1 Ballistic Gun 2 | 1 1 . . . Ballistic Cannon . | . . . . . Launcher . | . . . . . Special Weapon . | . . . . . Impact Weapon . | . . . . . Slashing Weapon . | . . . . . Piercing Weapon 1 | . . 1 . . Special Melee Weapon . | . . . . . Unidentified Prototypes . | . . . . . Parts Lost 8 | . 1 . . 7 Power 2 | . . . . 2 Propulsion 2 | . . . . 2 Utility 1 | . . . . 1 Weapon 3 | . 1 . . 2 Highest Loss Streak 7 | . 1 . . 7 Average Slot Usage (%) 97 | . 98 100 100 86 Engine 13 | . 14 14 14 11 Treads 26 | . 28 28 28 11 Wheel 1 | . . . . 12 Device 1 | . . . . 10 Storage 14 | . 14 14 14 14 Protection 11 | . 12 14 14 1 Energy Gun 15 | . 24 11 . . Ballistic Gun 7 | . 3 14 14 2 Piercing Weapon 3 | . . 2 14 14 Naked Turns . | . . . . . Heaviest Build 44 | 12 43 44 44 44 Greatest Support 40 | 40 40 40 40 40 Greatest Overweight (x) 3 | . 1 1 1 3 Average Overweight (x) . | . . 1 1 1 Largest Inventory Capacity 12 | 6 12 12 12 12 Average Capacity 11 | 5 11 12 12 12 Most Carried 8 | 4 6 8 8 8 Average Carried 3 | . . 7 8 4 Final Capacity 12 | 6 12 12 12 12 Final Carried 8 | . 6 8 8 4 Class Distribution -------------------- 95% | Mutant 4% | Scavenger-Mutant Dominant Class ---------------- Mutant | -10/Materials Mutant | -10/Mines Mutant | -10/Exiles Mutant | -9/Mines Resources | -11 -10 -10 -10 -9 ----------- Run | Scr Mat Min Exi Min Matter Collected 487 | 214 171 32 . 70 Remotely . | . . . . . Salvage Created 632 | . 434 137 . 61 Parts 50 | . 38 12 . . Haulers Intercepted . | . . . . . Recyclers Shooed 1 | . 1 . . . Parts Field Recycled . | . . . . . Retrieved Matter . | . . . . . Parts Self-Destructed . | . . . . . Prevented . | . . . . . Kills | -11 -10 -10 -10 -9 ------- Run | Scr Mat Min Exi Min Combat Hostiles Destroyed 24 | . 12 7 . 5 Melee 5 | . . . . 5 Guns 19 | . 12 7 . . Classes Destroyed 6 | . 5 . . 1 Worker 1 | . 1 . . . Recycler 1 | . 1 . . . Watcher 3 | . 3 . . . Swarmer 14 | . 8 6 . . Grunt 5 | . 4 1 . . Assembled 5 | . . . . 5 Best Kill Streak 6 | . 6 3 . 3 Combat Bots Only 6 | . 6 3 . 3 Max Kills in Single Turn 2 | . 2 2 . 1 Gunslinging 1 | . . 1 . . Exploded . | . . . . . Melee 1 | . . . . 1 Uniques/NPCs Destroyed . | . . . . . Combat | -11 -10 -10 -10 -9 -------- Run | Scr Mat Min Exi Min Damage Taken 1228 | . 314 136 . 778 Core 266 | . 36 11 . 219 Absorbed by Shields . | . . . . . Core Remaining (%) 100 | 100 . . . . Volleys Fired 55 | . 32 13 . 10 Largest 2 | . 2 2 . 1 Hottest 80 | . 80 60 . 56 Shots Fired 95 | . 64 21 . 10 Gun 91 | . 64 21 . 6 Cannon 4 | . . . . 4 Launcher . | . . . . . Special . | . . . . . Kinetic 28 | . 10 13 . 5 Thermal 63 | . 54 8 . 1 Explosive . | . . . . . Electromagnetic 4 | . . . . 4 Robot Hit Streak 17 | . 17 8 . 8 Robot Miss Streak 5 | . 2 5 . 1 Penetration Max . | . . . . . Secondary Targets 4 | . 2 2 . . Max Gunslinging Chain 1 | . 1 1 . . Shots Hit Robots 74 | . 46 12 . 16 Core Hits 39 | . 24 8 . 7 Critical Hits 1 | . . . . 1 Critical Kills . | . . . . . Critical Parts Destroyed 1 | . . . . 1 Melee Attacks 10 | . . . . 10 Impact . | . . . . . Slashing . | . . . . . Piercing 10 | . . . . 10 Sneak Attacks . | . . . . . Combat Hostiles . | . . . . . Follow-up Attacks . | . . . . . Damage Inflicted 1135 | . 548 163 . 424 Guns 715 | . 514 144 . 57 Cannons 75 | . . . . 75 Explosions . | . . . . . Melee 292 | . . . . 292 Ramming 53 | . 34 19 . . Kinetic 211 | . 88 66 . 57 Thermal 504 | . 426 78 . . Explosive . | . . . . . Electromagnetic 75 | . . . . 75 Impact . | . . . . . Slashing . | . . . . . Piercing 292 | . . . . 292 Highest Corruption . | . . . . . Average Corruption . | . . . . . Corruption Purged . | . . . . . Overload Shots . | . . . . . Overflow Damage 55 | . 5 . . 50 Projectiles 17 | . . . . 17 Explosions 4 | . 4 . . . Melee 34 | . 1 . . 33 Knockbacks . | . . . . . Impact . | . . . . . Kinetic . | . . . . . Secondary . | . . . . . Self-Inflicted Damage 68 | . 68 . . . Shots 1 | . 1 . . . Rammed 7 | . 4 3 . . Targets Rammed 7 | . 4 3 . . Kicked . | . . . . . Crushed . | . . . . . Highest Temperature 179 | . 179 27 . 40 Average Temperature 39 | . 52 12 . 15 Received Heat Transfer 986 | . 54 12 . 920 Siege Activations . | . . . . . Robots Corrupted . | . . . . . Combat Hostiles . | . . . . . Parts Fried 1 | . 1 . . . Impact Corruptions 2 | . 2 . . . Robots Melted . | . . . . . Combat Hostiles . | . . . . . Parts Melted 2 | . 1 1 . . Heat Transferred 1125 | . 950 175 . . Parts Sabotaged . | . . . . . Parts Stolen . | . . . . . Parts Stripped . | . . . . . Power Chain Reactions . | . . . . . Missiles Intercepted . | . . . . . Alert | -11 -10 -10 -10 -9 ------- Run | Scr Mat Min Exi Min Peak Influence 193 | . 140 193 . 15 Initial . | . . . . . Average 52 | . 54 81 . . Maximum Alert Level . | . . . . . Low Security (%) 100 | 100 100 100 . 100 Level 1 . | . . . . . Level 2 . | . . . . . Level 3 . | . . . . . Level 4 . | . . . . . Level 5 . | . . . . . High Security . | . . . . . Max Security . | . . . . . Squads Dispatched 3 | . 3 . . . Investigation 3 | . 3 . . . Extermination . | . . . . . Reinforcement . | . . . . . Assault . | . . . . . Garrison . | . . . . . Intercept . | . . . . . Construction Impeded . | . . . . . Haulers Reinforced . | . . . . . Stealth | -11 -10 -10 -10 -9 --------- Run | Scr Mat Min Exi Min Distress Signals 1 | . . . . 1 Communications Jammed . | . . . . . Distress Signals . | . . . . . Times Spotted 40 | . 20 7 . 13 Peak Tracking Total 12 | . 3 3 . 12 Tactical Retreats 3 | . . . . 3 Traps | -11 -10 -10 -10 -9 ------- Run | Scr Mat Min Exi Min Traps Triggered 2 | . 2 . . . Indirectly . | . . . . . Trap Hack Attempts . | . . . . . Triggered . | . . . . . Disarmed . | . . . . . Reprogrammed . | . . . . . Reused . | . . . . . Traps Extracted . | . . . . . Installed . | . . . . . Triggered . | . . . . . Machines | -11 -10 -10 -10 -9 ---------- Run | Scr Mat Min Exi Min Machines Disabled 1 | . 1 . . . Max in Single Turn 1 | . 1 . . . Machines Sabotaged . | . . . . . Garrisons Compromised . | . . . . . Overloaded Fab Kills . | . . . . . Fab Network Shutdowns . | . . . . . Hacking | -11 -10 -10 -10 -9 --------- Run | Scr Mat Min Exi Min Machines Accessed 1 | . 1 . . . Terminals . | . . . . . Fabricators . | . . . . . Repair Stations 1 | . 1 . . . Recycling Units . | . . . . . Scanalyzers . | . . . . . Garrison Access . | . . . . . Total Hacks 4 | . 4 . . . Successful 4 | . 4 . . . Failed . | . . . . . Catastrophic . | . . . . . Database Lockouts . | . . . . . Manual . | . . . . . Terminals . | . . . . . Fabricators . | . . . . . Repair Stations 4 | . 4 . . . Recycling Units . | . . . . . Scanalyzers . | . . . . . Garrison Access . | . . . . . Terminal Hacks . | . . . . . Fabricator Hacks . | . . . . . Repair Station Hacks 4 | . 4 . . . Scan Component 2 | . 2 . . . Repair 2 | . 2 . . . Recycling Unit Hacks . | . . . . . Scanalyzer . | . . . . . Garrison Access Hacks . | . . . . . Unauthorized Hacks . | . . . . . Terminals . | . . . . . Fabricators . | . . . . . Repair Stations . | . . . . . Recycling Units . | . . . . . Scanalyzers . | . . . . . Garrison Access . | . . . . . Data Cores Recovered . | . . . . . Used . | . . . . . Hacking Detections . | . . . . . Full Trace Events . | . . . . . Feedback Events . | . . . . . Feedback Blocked . | . . . . . Robot Schematics Acquired . | . . . . . Robots Built . | . . . . . Matter . | . . . . . Time . | . . . . . Total Robot Build Rating . | . . . . . Part Schematics Acquired . | . . . . . Parts Built . | . . . . . Matter . | . . . . . Time . | . . . . . Total Part Build Rating . | . . . . . Parts Repaired 2 | . 2 . . . Time 52 | . 52 . . . Parts Recycled . | . . . . . Recycled Matter . | . . . . . Retrieved Matter . | . . . . . Retrieved Components . | . . . . . Parts Scanalyzed . | . . . . . Part Schematics Acquired . | . . . . . Parts Damaged . | . . . . . Bothacking | -11 -10 -10 -10 -9 ------------ Run | Scr Mat Min Exi Min Used RIF Installer . | . . . . . Robots Hacked . | . . . . . Non-combat . | . . . . . Combat . | . . . . . Robot Hacks Applied . | . . . . . Relay Couplers Released . | . . . . . Robots Rewired . | . . . . . Allies Hacked . | . . . . . Hacks Repelled . | . . . . . Allies | -11 -10 -10 -10 -9 -------- Run | Scr Mat Min Exi Min Total Allies 2 | . . 2 . . Largest Group 2 | . . 2 2 . Highest-Rated Group 44 | . . 44 44 . Highest-Rated Ally 31 | . . 31 31 . Total Orders . | . . . . . Ally Attacks 3 | . . 3 . . Total Damage 42 | . . 42 . . Kills 1 | . . 1 . . Allies Corrupted . | . . . . . Allies Melted . | . . . . . Intel | -11 -10 -10 -10 -9 ------- Run | Scr Mat Min Exi Min Robot Analysis Total . | . . . . . Derelict Logs Recovered 1 | . . . . 1 Drone Launches . | . . . . . Drone Recoveries . | . . . . . Exploration | -11 -10 -10 -10 -9 ------------- Run | Scr Mat Min Exi Min Turns Passed 2943 | 60 1617 612 342 312 Spaces Moved 1587 | 37 836 317 191 206 Core 9 | 9 . . . . Treads 1440 | 28 836 317 191 68 Legs . | . . . . . Wheels 138 | . . . . 138 Hover . | . . . . . Flight . | . . . . . Fastest Speed 50 | 50 160 180 180 90 Average Speed 170 | 133 177 180 180 125 Slowest Speed 180 | 160 180 180 180 180 Overloaded Moves . | . . . . . Propulsion Burnouts . | . . . . . Robots Hopped . | . . . . . Cave-ins Triggered . | . . . . . Exploration Rate (%) 53 | 3 98 65 57 46 Regions Visited 4 Branch Regions 3 Pre-discovered Areas . | . . . . . Known Exits Taken . | . . . . . Unknown Exits Taken 4 | 1 1 1 1 . Scrap Searched 2 | . . 1 . 1 Spaces Dug . | . . . . . Terrain Destroyed 30 | . 30 . . . Melee . | . . . . . Projectile . | . . . . . AOE 30 | . 30 . . . Terrain Rammed . | . . . . . Walls Destroyed . | . . . . . Machines Disabled . | . . . . . Actions | -11 -10 -10 -10 -9 --------- Run | Scr Mat Min Exi Min Total 1718 | 48 906 335 190 239 Wait . | . . . . . Move 1583 | 36 835 316 190 206 Hop . | . . . . . Pick Up 30 | 6 18 2 . 4 Fast Attach . | . . . . . Attach 16 | 6 3 . . 7 Detach . | . . . . . Swap 9 | . 7 1 . 1 Drop 8 | . 7 . . 1 Fire 55 | . 32 13 . 10 Melee 10 | . . . . 10 Ram . | . . . . . Kick . | . . . . . Crush 7 | . 4 3 . . Escape Stasis . | . . . . . Rewire . | . . . . . Trap . | . . . . . Miscellaneous . | . . . . . Route ------- -11/Scrapyard -10/Materials (discovered 5 exits: [*Mat x3] / [*Min x2]) -10/Mines -10/Exiles (discovered 2 exits: [*Min x2]) -9/Mines History --------- Turn | Location | Event 5 | -11/Scrapyard | Discovered new exit (range 16) 61 | -11/Scrapyard | Entered Materials 200 | -10/Materials | Discovered new exit (range 3) 311 | -10/Materials | Build established: Mutant 341 | -10/Materials | Discovered new exit (range 12) 457 | -10/Materials | Discovered new exit (range 11) 890 | -10/Materials | Discovered new exit (range 14) 1106 | -10/Materials | Discovered new exit (range 14) 1483 | -10/Materials | Repaired Lgt. Armor Plating 1512 | -10/Materials | Repaired Ion Engine 1678 | -10/Materials | Entered Mines 2151 | -10/Mines | A weapon hastily lodged in a ceiling crevice suddenly fell to the ground 2274 | -10/Mines | Deemed a non-threat by the Exiles lab entrance 2274 | -10/Mines | Discovered new exit (range 5) 2290 | -10/Mines | Entered Exiles 2290 | -10/Exiles | Accompanied by 2 allies 2320 | -10/Exiles | Led the pair of lost Derelicts to a safe place 2332 | -10/Exiles | Discovered new exit (range 15) 2350 | -10/Exiles | Met 8R-AWN 2380 | -10/Exiles | Met EX-HEX 2454 | -10/Exiles | Met EX-DEC 2596 | -10/Exiles | Discovered new exit (range 10) 2632 | -10/Exiles | Entered Mines 2633 | -9/Mines | Assembled infested the area 2638 | -9/Mines | Assisted by a Guerilla fighting off Assembled 2643 | -9/Mines | Met a Derelict bent on vengeance 2685 | -9/Mines | Core integrity fell below 50% 2719 | -9/Mines | Core integrity fell below 20% 2750 | -9/Mines | Lost 7 parts (2p2n1u2w) 2841 | -9/Mines | Learned Materials emergency access door positions 2944 | -9/Mines | Destroyed by as-24702 with Assembled Maul Last Messages --------------- Destroyed Asb. F-torch. as-77978 destroyed. Acquired 12 matter. Destroyed Asb. Hover Unit. as-33162 destroyed. Acquired 8 matter. Acquired Lgt. Ion Engine. Acquired 10 matter. Acquired Wheel. Acquired 10 matter. Acquired Wheel. Dropped Lgt. Treads. Acquired Lgt. EM Pulse Cannon. Acquired 14 matter. K-01 Serf collects debris. Acquired 6 matter. Acquired derelict log, extracted data. Data stored: Materials emergency access points. T-07 Excavator is excavating. Destroyed Asb. Hover Unit. Map ----- +----------------------------------------------------+ | | | | | | | | | | | | | | | | | | | | | | | | | | | ?????????????????????????????????????????????????? | | ?????????????????????????????????????????????????? | | ################?????????????????????????????????? | | # #?????????????##??????????????????? | | # #????????????gg#??????????????????? | | # ########## #????????????? ####???????????????? | | # #???????????????????????$ # ##??????????????? | | # #??????????????????????? #??????????????? | | # #??????????????????????# ##?????????????? | | # ##???????????????????## ##????????????? | | #???????????????##### ##???????????? | | #???????????????# ????????? | | ##???????????????# @a #???????????? | | ##???????????????# ## #???????????? | | #???????????????# ### #???????????? | | # #???????????????# #?## #???????????? | | # ##????????####### #??? ##???????????? | | ![ ##???????# #??? ###????????????? | | ! #???????# #######??? ##??????????????? | | #???????# #????????? ##???????????????? | | ! ##???????# #????????? ###????????????????? | | # ##????????# #?????????? ##??????????????????? | | ## ##?????????# #??????????###???????????????????? | | ?# #????####??# #????????????????????????????????? | | ?# #???## ##?# #????????????????????????????????? | | ?# ##### ### #????????????????????????????????? | | ?# #????????????????????????????????? | | ?# #????????????????????????????????? | | ?#### ####????????????????????????????????? | | ????# #???????????????????????????????????? | | ???## ##???????????????????????????????????? | | #### ##????????????????????????????????????? | | ##????????????????????????????????????? | | ##???????????????????????????????????? | | ##??????????????????????????????????? | | ## #??????????????????????????????????? | | #?#### # #????????????????????????????????? | +----------------------------------------------------+ Best States ------------- Heat Dissipation 35 Energy Generation 10 Energy Capacity 250 Matter Stores 300 Matter Capacity 300 Sight Range 18 Terrain Scan Density 10 Armor Coverage 150 Resistance: KI 20 Resistance: TH 20 Resistance: EX 20 Resistance: EM 20 Resistance: I 20 Resistance: S 20 Resistance: P 20 Evasion (%) 50 Recoil Reduction 2 Offensive Hacking 10 Item Schematics ----------------- None Robot Schematics ------------------ None Fabricated ------------ Nothing Alien Tech Used ----------------- None Achievements -------------- None Challenges ------------ None Game ------ Seed DirtySeismicLog Manual? 0 Play Time 00:20:27 Cumulative 8.4 hours Start 2020.11.11 @ 21:13:20 End 2020.11.11 @ 21:30:06 Sessions 1 Manual Loads 0 Difficulty Adventurer Special Mode Halloween2020/ForbiddenLore Game No. 28 Rogue 1 Adventurer 27 Explorer 0 Win Type - Total 0 Types 0/0/0/0/0/0/0/0/0 Lore% 7 Gallery% 16 Achievement% 10 Wizard Run 0 Options --------- ASCII 0 Keyboard 0 Movement Mouse Keybinds 0 Fullscreen 1 Font 18/SmallcapsGlow Map View 76x50 Tactical HUD 0 Map Filters NONE Filters NONE Steam 1 RUN: c1e3f1c3-de5f-4b31-b10c-7c8c7f18113e